[Event "Betsys MČR v online bleskovém šachu 2021"]
[Site "Chess.com"]
[Date "2021.04.17"]
[Round "6"]
[White "MBorkovec"]
[Black "Pokemonchess"]
[Result "1-0"]
[WhiteElo "2267"]
[BlackElo "1935"]
[TimeControl "180+1"]
[EndTime "9:57:06 PDT"]
[Termination "Uživatel MBorkovec zvítězil po vzdání soupeře"]

1. e4 {[%clk 0:02:44.5]} 1... c5 {[%clk 0:02:59]} 2. Nf3 {[%clk 0:02:44.1]} 2...
Nc6 {[%clk 0:02:59.1]} 3. d4 {[%clk 0:02:44.2]} 3... cxd4 {[%clk 0:03:00]} 4.
Nxd4 {[%clk 0:02:44.4]} 4... g6 {[%clk 0:03:00.1]} 5. Nc3 {[%clk 0:02:44.6]}
5... Bg7 {[%clk 0:02:59.9]} 6. Be3 {[%clk 0:02:45.2]} 6... Nf6 {[%clk
0:03:00.2]} 7. Be2 {[%clk 0:02:45.5]} 7... O-O {[%clk 0:02:58.9]} 8. Nb3 {[%clk
0:02:46.1]} 8... d6 {[%clk 0:02:57.6]} 9. O-O {[%clk 0:02:46.1]} 9... Bd7 {[%clk
0:02:52.6]} 10. f4 {[%clk 0:02:46]} 10... Rc8 {[%clk 0:02:45.1]} 11. Bf3 {[%clk
0:02:44.6]} 11... a6 {[%clk 0:02:42.1]} 12. Nd5 {[%clk 0:02:35.9]} 12... Nxd5
{[%clk 0:02:34.6]} 13. exd5 {[%clk 0:02:36.1]} 13... Nb8 {[%clk 0:02:35]} 14. c3
{[%clk 0:02:35.2]} 14... Bb5 {[%clk 0:02:27.6]} 15. Rf2 {[%clk 0:02:35]} 15...
Nd7 {[%clk 0:02:26.4]} 16. Qd2 {[%clk 0:02:30.3]} 16... Nf6 {[%clk 0:02:24.7]}
17. Re1 {[%clk 0:02:24.8]} 17... Bd7 {[%clk 0:02:23.6]} 18. Bd4 {[%clk
0:02:14.1]} 18... Ne8 {[%clk 0:01:56.7]} 19. Rfe2 {[%clk 0:02:09.9]} 19... Bxd4+
{[%clk 0:01:45.8]} 20. Nxd4 {[%clk 0:02:07.6]} 20... Nf6 {[%clk 0:01:21.6]} 21.
Rxe7 {[%clk 0:01:50.8]} 21... Qb6 {[%clk 0:01:10]} 22. R7e2 {[%clk 0:01:43.4]}
22... Qa5 {[%clk 0:00:56.1]} 23. f5 {[%clk 0:01:24.5]} 23... Qxa2 {[%clk
0:00:39.9]} 24. fxg6 {[%clk 0:01:16.8]} 24... fxg6 {[%clk 0:00:39.4]} 25. Qg5
{[%clk 0:01:13.9]} 25... Rc5 {[%clk 0:00:30.5]} 26. Ne6 {[%clk 0:00:49]} 26...
Bxe6 {[%clk 0:00:25.6]} 27. Rxe6 {[%clk 0:00:48.7]} 27... Nxd5 {[%clk
0:00:23.4]} 28. Qh6 {[%clk 0:00:38.4]} 28... Qa4 {[%clk 0:00:17.7]} 29. Bxd5
{[%clk 0:00:30.7]} 29... Rxd5 {[%clk 0:00:18.6]} 30. Re7 {[%clk 0:00:31.2]}
30... Rf7 {[%clk 0:00:09]} 31. Re8+ {[%clk 0:00:30.7]} 31... Qxe8 {[%clk
0:00:05.5]} 32. Rxe8+ {[%clk 0:00:29.1]} 1-0

[Event "Betsys MČR v online bleskovém šachu 2021"]
[Site "Chess.com"]
[Date "2021.04.17"]
[Round "6"]
[White "Hollow_Head"]
[Black "DavidZidlicky"]
[Result "0-1"]
[WhiteElo "1072"]
[BlackElo "1698"]
[TimeControl "180+1"]
[EndTime "9:57:07 PDT"]
[Termination "Uživatel DavidZidlicky zvítězil matem"]

1. e4 {[%clk 0:03:00.9]} 1... c5 {[%clk 0:03:00.9]} 2. Nf3 {[%clk 0:03:00.3]}
2... Nc6 {[%clk 0:03:00.2]} 3. Nc3 {[%clk 0:03:00.9]} 3... d6 {[%clk 0:02:59.9]}
4. g3 {[%clk 0:03:01.3]} 4... Nf6 {[%clk 0:02:57.1]} 5. Bg2 {[%clk 0:03:01.8]}
5... e5 {[%clk 0:02:56.6]} 6. O-O {[%clk 0:03:02]} 6... Bg4 {[%clk 0:02:55.3]}
7. d3 {[%clk 0:03:01.9]} 7... Nd4 {[%clk 0:02:53.7]} 8. Bg5 {[%clk 0:02:59.4]}
8... Be7 {[%clk 0:02:50.7]} 9. Bxf6 {[%clk 0:02:59.6]} 9... Bxf6 {[%clk
0:02:49.9]} 10. Nd5 {[%clk 0:02:59.5]} 10... Nxf3+ {[%clk 0:02:43.2]} 11. Bxf3
{[%clk 0:02:58.9]} 11... Be6 {[%clk 0:02:41.8]} 12. Nxf6+ {[%clk 0:02:58.6]}
12... Qxf6 {[%clk 0:02:41.3]} 13. Qe2 {[%clk 0:02:58.1]} 13... O-O {[%clk
0:02:29.1]} 14. b3 {[%clk 0:02:56.2]} 14... a5 {[%clk 0:02:28.5]} 15. c4 {[%clk
0:02:56.3]} 15... b6 {[%clk 0:02:24.9]} 16. h3 {[%clk 0:02:55]} 16... Bxh3
{[%clk 0:02:21.4]} 17. Rfe1 {[%clk 0:02:53.5]} 17... Qh6 {[%clk 0:02:14.4]} 18.
Bg2 {[%clk 0:02:50.1]} 18... Be6 {[%clk 0:02:08.2]} 19. f3 {[%clk 0:02:46.4]}
19... Ra7 {[%clk 0:02:07.7]} 20. Kf2 {[%clk 0:02:46.4]} 20... f5 {[%clk
0:02:06]} 21. Rh1 {[%clk 0:02:46.2]} 21... Qg5 {[%clk 0:02:00.7]} 22. exf5
{[%clk 0:02:41]} 22... Bxf5 {[%clk 0:01:54.2]} 23. g4 {[%clk 0:02:40.5]} 23...
Bxg4 {[%clk 0:01:52]} 24. Raf1 {[%clk 0:02:31.8]} 24... Be6 {[%clk 0:01:47.2]}
25. Rh2 {[%clk 0:02:30.2]} 25... Raf7 {[%clk 0:01:45.9]} 26. Rfh1 {[%clk
0:02:28.7]} 26... Bf5 {[%clk 0:01:39.2]} 27. Rh5 {[%clk 0:02:27.8]} 27... Qg6
{[%clk 0:01:34.1]} 28. R1h4 {[%clk 0:02:02.1]} 28... Bxd3 {[%clk 0:01:31.8]} 29.
Qe3 {[%clk 0:01:59]} 29... e4 {[%clk 0:01:23.8]} 30. f4 {[%clk 0:01:55.2]} 30...
h6 {[%clk 0:01:05.3]} 31. f5 {[%clk 0:01:40.3]} 31... Rxf5+ {[%clk 0:01:03.5]}
32. Rxf5 {[%clk 0:01:39.9]} 32... Rxf5+ {[%clk 0:01:00.6]} 33. Ke1 {[%clk
0:01:37.4]} 33... Qxg2 {[%clk 0:00:59.5]} 34. Rf4 {[%clk 0:01:30.7]} 34... Rxf4
{[%clk 0:00:51.7]} 35. Kd1 {[%clk 0:01:27.8]} 35... Rf1+ {[%clk 0:00:50.5]} 36.
Qe1 {[%clk 0:01:26.9]} 36... Bc2+ {[%clk 0:00:49.8]} 37. Kc1 {[%clk 0:01:26.6]}
37... Rxe1+ {[%clk 0:00:49.5]} 38. Kb2 {[%clk 0:01:27.3]} 38... Bd3+ {[%clk
0:00:48.2]} 39. Ka3 {[%clk 0:01:27.5]} 39... Qc2 {[%clk 0:00:43.7]} 40. b4
{[%clk 0:01:23]} 40... Qc3+ {[%clk 0:00:42.3]} 41. Ka4 {[%clk 0:01:22.4]} 41...
Bc2+ {[%clk 0:00:39.4]} 42. Kb5 {[%clk 0:01:22]} 42... axb4 {[%clk 0:00:35]} 43.
Kxb6 {[%clk 0:01:21.8]} 43... Qa3 {[%clk 0:00:34.2]} 44. Kc6 {[%clk 0:01:20.9]}
44... Qa6+ {[%clk 0:00:33.4]} 45. Kd5 {[%clk 0:01:20.8]} 45... Rd1+ {[%clk
0:00:30.3]} 46. Ke6 {[%clk 0:01:20.4]} 46... e3 {[%clk 0:00:30.1]} 47. Kd7
{[%clk 0:01:19.5]} 47... Bf5+ {[%clk 0:00:28.1]} 48. Kd8 {[%clk 0:01:19.3]}
48... e2 {[%clk 0:00:26.5]} 49. Kc7 {[%clk 0:01:17.8]} 49... Qa7+ {[%clk
0:00:21.5]} 50. Kc6 {[%clk 0:01:16.7]} 50... Be4+ {[%clk 0:00:20.4]} 51. Kb5
{[%clk 0:01:16.8]} 51... e1=Q {[%clk 0:00:16.5]} 52. a4 {[%clk 0:01:13.3]} 52...
Bc6+ {[%clk 0:00:15.7]} 53. Kxc6 {[%clk 0:01:12.7]} 53... Qe4+ {[%clk
0:00:15.5]} 54. Kb5 {[%clk 0:01:12.2]} 54... Qe8# {[%clk 0:00:15.4]} 0-1

[Event "Betsys MČR v online bleskovém šachu 2021"]
[Site "Chess.com"]
[Date "2021.04.17"]
[Round "6"]
[White "tkokosek007"]
[Black "Hroch_Hippo"]
[Result "0-1"]
[WhiteElo "1380"]
[BlackElo "1091"]
[TimeControl "180+1"]
[EndTime "9:57:09 PDT"]
[Termination "Uživatel Hroch_Hippo zvítězil na čas"]

1. b3 {[%clk 0:03:00.9]} 1... e5 {[%clk 0:02:57.2]} 2. Bb2 {[%clk 0:03:00.4]}
2... Bd6 {[%clk 0:02:50.9]} 3. e4 {[%clk 0:02:55.5]} 3... Qf6 {[%clk 0:02:49.4]}
4. Nf3 {[%clk 0:02:46.8]} 4... Bc5 {[%clk 0:02:45.9]} 5. Bxe5 {[%clk 0:02:33.9]}
5... Qg6 {[%clk 0:02:39]} 6. d3 {[%clk 0:02:21]} 6... d6 {[%clk 0:02:36.2]} 7.
Bb2 {[%clk 0:02:18.7]} 7... Nf6 {[%clk 0:02:28.5]} 8. Nbd2 {[%clk 0:02:17.2]}
8... Bg4 {[%clk 0:02:25.6]} 9. Be2 {[%clk 0:02:12.1]} 9... Bxf3 {[%clk
0:02:25.2]} 10. Bxf3 {[%clk 0:02:04.5]} 10... O-O {[%clk 0:02:22.1]} 11. O-O
{[%clk 0:01:55.7]} 11... Nc6 {[%clk 0:02:21.9]} 12. a3 {[%clk 0:01:46.7]} 12...
Ne5 {[%clk 0:02:21.2]} 13. b4 {[%clk 0:01:43.8]} 13... Bb6 {[%clk 0:02:20.7]}
14. Nc4 {[%clk 0:01:26]} 14... Nxf3+ {[%clk 0:02:17.5]} 15. Qxf3 {[%clk
0:01:24.9]} 15... a6 {[%clk 0:02:13.2]} 16. e5 {[%clk 0:01:13.7]} 16... dxe5
{[%clk 0:02:10.5]} 17. Nxe5 {[%clk 0:01:02]} 17... Qh5 {[%clk 0:01:56.3]} 18.
Nc4 {[%clk 0:00:58]} 18... Qxf3 {[%clk 0:01:55.3]} 19. gxf3 {[%clk 0:00:57.9]}
19... Nh5 {[%clk 0:01:49.7]} 20. Nxb6 {[%clk 0:00:51.2]} 20... cxb6 {[%clk
0:01:47.6]} 21. Rae1 {[%clk 0:00:50]} 21... Rac8 {[%clk 0:01:46.4]} 22. c4
{[%clk 0:00:48.4]} 22... b5 {[%clk 0:01:46.5]} 23. c5 {[%clk 0:00:46.3]} 23...
Rc6 {[%clk 0:01:39.2]} 24. Re4 {[%clk 0:00:40.5]} 24... b6 {[%clk 0:01:37.1]}
25. d4 {[%clk 0:00:35.3]} 25... bxc5 {[%clk 0:01:36.4]} 26. dxc5 {[%clk
0:00:33.3]} 26... Rg6+ {[%clk 0:01:34.1]} 27. Kh1 {[%clk 0:00:29.4]} 27... f5
{[%clk 0:01:31.8]} 28. Re5 {[%clk 0:00:20.5]} 28... Nf4 {[%clk 0:01:30.3]} 29.
Rg1 {[%clk 0:00:18.7]} 29... Rxg1+ {[%clk 0:01:27.9]} 30. Kxg1 {[%clk
0:00:14.2]} 30... Nd3 {[%clk 0:01:26.3]} 31. Re2 {[%clk 0:00:12.7]} 31... Nxb2
{[%clk 0:01:26.1]} 32. Rxb2 {[%clk 0:00:11]} 32... Kf7 {[%clk 0:01:23.1]} 33.
Kf1 {[%clk 0:00:10.6]} 33... Kf6 {[%clk 0:01:22.9]} 34. Rc2 {[%clk 0:00:09.9]}
34... g5 {[%clk 0:01:22.9]} 35. c6 {[%clk 0:00:07.8]} 35... Ke6 {[%clk 0:01:23]}
36. c7 {[%clk 0:00:07.8]} 36... Kd7 {[%clk 0:01:23.1]} 37. Ke2 {[%clk
0:00:06.3]} 37... g4 {[%clk 0:01:21.8]} 38. fxg4 {[%clk 0:00:05.8]} 38... fxg4
{[%clk 0:01:22]} 39. c8=Q+ {[%clk 0:00:03.9]} 39... Rxc8 {[%clk 0:01:21]} 40.
Rxc8 {[%clk 0:00:03.7]} 40... Kxc8 {[%clk 0:01:21.9]} 41. Ke3 {[%clk 0:00:03.5]}
41... Kd7 {[%clk 0:01:22.4]} 42. Kf4 {[%clk 0:00:03.8]} 42... Kc6 {[%clk
0:01:22.1]} 43. Kxg4 {[%clk 0:00:03.9]} 43... Kd5 {[%clk 0:01:22.8]} 44. h4
{[%clk 0:00:03.8]} 44... Kc4 {[%clk 0:01:23.3]} 45. Kg5 {[%clk 0:00:03.9]} 45...
Kb3 {[%clk 0:01:23.8]} 46. Kh6 {[%clk 0:00:03.8]} 46... Kxa3 {[%clk 0:01:24.5]}
47. Kxh7 {[%clk 0:00:04.1]} 47... Kxb4 {[%clk 0:01:25]} 48. Kg7 {[%clk
0:00:04.2]} 48... a5 {[%clk 0:01:25]} 49. h5 {[%clk 0:00:02.8]} 49... a4 {[%clk
0:01:25.6]} 50. h6 {[%clk 0:00:03.2]} 50... a3 {[%clk 0:01:26.2]} 51. h7 {[%clk
0:00:03.4]} 51... a2 {[%clk 0:01:25.5]} 52. h8=Q {[%clk 0:00:02.7]} 52... a1=Q+
{[%clk 0:01:25.4]} 53. Kg8 {[%clk 0:00:01.5]} 53... Qa2+ {[%clk 0:01:24.6]} 0-1

[Event "Betsys MČR v online bleskovém šachu 2021"]
[Site "Chess.com"]
[Date "2021.04.17"]
[Round "6"]
[White "kubajss"]
[Black "keram91"]
[Result "1/2-1/2"]
[WhiteElo "869"]
[BlackElo "756"]
[TimeControl "180+1"]
[EndTime "9:57:09 PDT"]
[Termination "Remíza opakováním pozice"]

1. e4 {[%clk 0:03:00.9]} 1... e5 {[%clk 0:02:58.9]} 2. Nf3 {[%clk 0:03:01.1]}
2... f6 {[%clk 0:02:57.5]} 3. Bc4 {[%clk 0:03:00.3]} 3... Nh6 {[%clk 0:02:55.8]}
4. Nc3 {[%clk 0:02:57.5]} 4... a6 {[%clk 0:02:54]} 5. d3 {[%clk 0:02:56.8]} 5...
b5 {[%clk 0:02:53.7]} 6. Bb3 {[%clk 0:02:39.1]} 6... b4 {[%clk 0:02:51]} 7. Ne2
{[%clk 0:02:37.8]} 7... c6 {[%clk 0:02:49.5]} 8. a3 {[%clk 0:02:37.7]} 8... c5
{[%clk 0:02:46]} 9. axb4 {[%clk 0:02:31.4]} 9... cxb4 {[%clk 0:02:46.1]} 10. Bd2
{[%clk 0:02:25.9]} 10... a5 {[%clk 0:02:45.7]} 11. c3 {[%clk 0:02:25]} 11...
bxc3 {[%clk 0:02:45.2]} 12. bxc3 {[%clk 0:02:23.5]} 12... a4 {[%clk 0:02:42.3]}
13. Bxa4 {[%clk 0:02:19.8]} 13... Bb7 {[%clk 0:02:35.6]} 14. O-O {[%clk
0:02:13.2]} 14... Qb6 {[%clk 0:02:30.8]} 15. Qc2 {[%clk 0:01:59.6]} 15... Ng4
{[%clk 0:02:28.9]} 16. d4 {[%clk 0:01:52.3]} 16... exd4 {[%clk 0:02:21.7]} 17.
cxd4 {[%clk 0:01:50]} 17... Bd6 {[%clk 0:02:11.2]} 18. h3 {[%clk 0:01:43.2]}
18... Bh2+ {[%clk 0:02:08.8]} 19. Kh1 {[%clk 0:01:37.8]} 19... Qd6 {[%clk
0:02:00.1]} 20. hxg4 {[%clk 0:01:30.2]} 20... h5 {[%clk 0:01:45.4]} 21. Nxh2
{[%clk 0:01:24.2]} 21... hxg4 {[%clk 0:01:43.2]} 22. g3 {[%clk 0:01:22.2]} 22...
Rxh2+ {[%clk 0:01:38.4]} 23. Kxh2 {[%clk 0:01:21.8]} 23... Qf8 {[%clk
0:01:34.9]} 24. Kg2 {[%clk 0:01:21.3]} 24... Qe7 {[%clk 0:01:29.7]} 25. d5
{[%clk 0:01:05]} 25... f5 {[%clk 0:01:23.8]} 26. Rh1 {[%clk 0:00:36.3]} 26...
fxe4 {[%clk 0:01:20.1]} 27. Rh8+ {[%clk 0:00:33.1]} 27... Kf7 {[%clk 0:01:16.6]}
28. Rah1 {[%clk 0:00:23]} 28... e3 {[%clk 0:01:14.9]} 29. Bxe3 {[%clk
0:00:21.4]} 29... Bxd5+ {[%clk 0:01:12.7]} 30. f3 {[%clk 0:00:19.9]} 30... gxf3+
{[%clk 0:01:12.4]} 31. Kf2 {[%clk 0:00:19.9]} 31... fxe2 {[%clk 0:01:11.6]} 32.
Qf5+ {[%clk 0:00:13.3]} 32... Qf6 {[%clk 0:01:07.4]} 33. Qf3 {[%clk 0:00:11.4]}
33... e1=Q+ {[%clk 0:01:04]} 34. Kxe1 {[%clk 0:00:11.4]} 34... Qxf3 {[%clk
0:01:03.2]} 35. Rf1 {[%clk 0:00:11.9]} 35... Rxa4 {[%clk 0:00:58.1]} 36. Rxf3+
{[%clk 0:00:10.1]} 36... Ke7 {[%clk 0:00:57.8]} 37. Rf1 {[%clk 0:00:05.7]} 37...
Ra1+ {[%clk 0:00:57.5]} 38. Ke2 {[%clk 0:00:04.3]} 38... Ra2+ {[%clk 0:00:57.2]}
39. Ke1 {[%clk 0:00:04.4]} 39... Bc4 {[%clk 0:00:56.9]} 40. Rf2 {[%clk 0:00:03]}
40... Ra1+ {[%clk 0:00:57]} 41. Kd2 {[%clk 0:00:01.8]} 41... Ra2+ {[%clk
0:00:57.2]} 42. Ke1 {[%clk 0:00:01.9]} 42... Ra1+ {[%clk 0:00:57.4]} 43. Kd2
{[%clk 0:00:02.5]} 43... Ra2+ {[%clk 0:00:56.7]} 44. Ke1 {[%clk 0:00:03.1]}
1/2-1/2

[Event "Betsys MČR v online bleskovém šachu 2021"]
[Site "Chess.com"]
[Date "2021.04.17"]
[Round "6"]
[White "Bartusman"]
[Black "Loveforever_Pepi"]
[Result "0-1"]
[WhiteElo "1968"]
[BlackElo "2288"]
[TimeControl "180+1"]
[EndTime "9:57:10 PDT"]
[Termination "Uživatel Loveforever_Pepi zvítězil po vzdání soupeře"]

1. e4 {[%clk 0:03:00.9]} 1... c5 {[%clk 0:02:59.1]} 2. Nf3 {[%clk 0:03:00.9]}
2... d6 {[%clk 0:02:59.1]} 3. d4 {[%clk 0:02:58.8]} 3... cxd4 {[%clk 0:02:59.1]}
4. Nxd4 {[%clk 0:02:59.4]} 4... Nf6 {[%clk 0:02:58.8]} 5. Nc3 {[%clk 0:02:59]}
5... g6 {[%clk 0:02:59]} 6. f3 {[%clk 0:02:57.7]} 6... Bg7 {[%clk 0:02:58.7]} 7.
Be3 {[%clk 0:02:58.2]} 7... O-O {[%clk 0:02:53.8]} 8. Qd2 {[%clk 0:02:58.4]}
8... Nc6 {[%clk 0:02:53.2]} 9. g4 {[%clk 0:02:54.5]} 9... Ne5 {[%clk 0:02:43.6]}
10. Be2 {[%clk 0:02:46.2]} 10... Be6 {[%clk 0:02:42.5]} 11. h3 {[%clk
0:02:30.3]} 11... Rc8 {[%clk 0:02:38.7]} 12. f4 {[%clk 0:02:27]} 12... Nc4
{[%clk 0:02:35.3]} 13. Nxe6 {[%clk 0:02:27.1]} 13... fxe6 {[%clk 0:02:30.2]} 14.
Bxc4 {[%clk 0:02:25.2]} 14... Rxc4 {[%clk 0:02:29.3]} 15. g5 {[%clk 0:02:13.4]}
15... Nxe4 {[%clk 0:02:20.9]} 16. Nxe4 {[%clk 0:02:11.5]} 16... Rxe4 {[%clk
0:02:19.6]} 17. O-O-O {[%clk 0:02:12]} 17... Qc7 {[%clk 0:01:52.1]} 18. h4
{[%clk 0:02:08.3]} 18... Rc8 {[%clk 0:01:45.5]} 19. Rh2 {[%clk 0:02:01.7]} 19...
Qc4 {[%clk 0:01:11]} 20. Kb1 {[%clk 0:01:59.2]} 20... Qb5 {[%clk 0:01:02.5]} 21.
b3 {[%clk 0:01:37.2]} 21... Ra4 {[%clk 0:00:30]} 22. h5 {[%clk 0:00:35.1]} 22...
Rxa2 {[%clk 0:00:23.5]} 23. Bd4 {[%clk 0:00:24]} 23... Raxc2 {[%clk 0:00:12.5]}
24. Qxc2 {[%clk 0:00:24]} 24... Rxc2 {[%clk 0:00:10.9]} 25. Kxc2 {[%clk
0:00:19.8]} 25... Qf5+ {[%clk 0:00:07.7]} 26. Kb2 {[%clk 0:00:18.4]} 26... Qxf4
{[%clk 0:00:06.5]} 27. Bxg7 {[%clk 0:00:18.1]} 27... Qxh2+ {[%clk 0:00:05.4]}
28. Ka3 {[%clk 0:00:16.4]} 28... Kxg7 {[%clk 0:00:05.4]} 0-1

[Event "Betsys MČR v online bleskovém šachu 2021"]
[Site "Chess.com"]
[Date "2021.04.17"]
[Round "6"]
[White "misacz"]
[Black "feela1"]
[Result "1/2-1/2"]
[WhiteElo "1084"]
[BlackElo "1366"]
[TimeControl "180+1"]
[EndTime "9:57:11 PDT"]
[Termination "Remíza opakováním pozice"]

1. d4 {[%clk 0:03:00]} 1... Nf6 {[%clk 0:02:57.8]} 2. c4 {[%clk 0:02:58.8]} 2...
d5 {[%clk 0:02:55.9]} 3. Nf3 {[%clk 0:02:56]} 3... h6 {[%clk 0:02:51.9]} 4. Nc3
{[%clk 0:02:55.6]} 4... dxc4 {[%clk 0:02:51.3]} 5. Bf4 {[%clk 0:02:55]} 5... e6
{[%clk 0:02:48.1]} 6. e3 {[%clk 0:02:54.7]} 6... Bd6 {[%clk 0:02:46.9]} 7. Bxd6
{[%clk 0:02:53.6]} 7... Qxd6 {[%clk 0:02:44.4]} 8. Bxc4 {[%clk 0:02:54.5]} 8...
O-O {[%clk 0:02:43.5]} 9. Nb5 {[%clk 0:02:54.1]} 9... Qd7 {[%clk 0:02:39.9]} 10.
Ne5 {[%clk 0:02:45.9]} 10... Qe7 {[%clk 0:02:36.8]} 11. Qc2 {[%clk 0:02:29.5]}
11... a6 {[%clk 0:02:30]} 12. Qa4 {[%clk 0:02:17.7]} 12... Bd7 {[%clk
0:02:14.7]} 13. Qa3 {[%clk 0:02:03.7]} 13... Qxa3 {[%clk 0:02:11]} 14. Nxa3
{[%clk 0:02:04.6]} 14... Nc6 {[%clk 0:02:00.6]} 15. Nxd7 {[%clk 0:02:00.3]}
15... Nxd7 {[%clk 0:01:59.9]} 16. O-O {[%clk 0:01:58.5]} 16... Ne7 {[%clk
0:01:56]} 17. Rfd1 {[%clk 0:01:52]} 17... c6 {[%clk 0:01:55.3]} 18. e4 {[%clk
0:01:48.3]} 18... Rfd8 {[%clk 0:01:49.5]} 19. d5 {[%clk 0:01:46.2]} 19... cxd5
{[%clk 0:01:47.7]} 20. exd5 {[%clk 0:01:45.8]} 20... exd5 {[%clk 0:01:45.7]} 21.
Bxd5 {[%clk 0:01:46.7]} 21... Nxd5 {[%clk 0:01:45.1]} 22. Rxd5 {[%clk
0:01:47.6]} 22... Nf6 {[%clk 0:01:44.1]} 23. Rdd1 {[%clk 0:01:42.8]} 23... Rac8
{[%clk 0:01:41.3]} 24. h3 {[%clk 0:01:35.2]} 24... Ne4 {[%clk 0:01:39.6]} 25.
Rxd8+ {[%clk 0:01:15.5]} 25... Rxd8 {[%clk 0:01:38.8]} 26. Re1 {[%clk
0:01:16.1]} 26... Nf6 {[%clk 0:01:33.8]} 27. Re2 {[%clk 0:01:09.2]} 27... Rd7
{[%clk 0:01:28.1]} 28. Nc4 {[%clk 0:01:04.7]} 28... Kh7 {[%clk 0:01:17.3]} 29.
Nb6 {[%clk 0:01:00.9]} 29... Rc7 {[%clk 0:01:12.2]} 30. Rd2 {[%clk 0:00:42]}
30... Ne4 {[%clk 0:01:08.6]} 31. Re2 {[%clk 0:00:38]} 31... Nf6 {[%clk
0:01:06.7]} 32. Rd2 {[%clk 0:00:37.8]} 32... Ne4 {[%clk 0:00:58]} 33. Re2 {[%clk
0:00:36.8]} 33... Ng5 {[%clk 0:00:44.7]} 34. Nd5 {[%clk 0:00:32.4]} 34... Rd7
{[%clk 0:00:38.8]} 35. Nb6 {[%clk 0:00:28.9]} 35... Rc7 {[%clk 0:00:35.6]} 36.
Nd5 {[%clk 0:00:28.3]} 36... Rd7 {[%clk 0:00:22.6]} 37. Nb6 {[%clk 0:00:28.3]}
37... Rc7 {[%clk 0:00:21.9]} 1/2-1/2

[Event "Betsys MČR v online bleskovém šachu 2021"]
[Site "Chess.com"]
[Date "2021.04.17"]
[Round "6"]
[White "NeumanPetr"]
[Black "Trener-Pokrocili"]
[Result "1-0"]
[WhiteElo "2497"]
[BlackElo "2244"]
[TimeControl "180+1"]
[EndTime "9:57:13 PDT"]
[Termination "Uživatel NeumanPetr zvítězil po vzdání soupeře"]

1. e4 {[%clk 0:03:00.9]} 1... g6 {[%clk 0:02:58.3]} 2. d4 {[%clk 0:03:00.4]}
2... Bg7 {[%clk 0:02:58.5]} 3. c4 {[%clk 0:03:01.2]} 3... Nc6 {[%clk 0:02:57.5]}
4. Ne2 {[%clk 0:02:57.2]} 4... e5 {[%clk 0:02:49.3]} 5. d5 {[%clk 0:02:52.1]}
5... Nd4 {[%clk 0:02:48.1]} 6. Be3 {[%clk 0:02:51.7]} 6... c5 {[%clk 0:02:41.3]}
7. Nxd4 {[%clk 0:02:30.5]} 7... exd4 {[%clk 0:02:34.9]} 8. Bd2 {[%clk
0:02:27.6]} 8... d6 {[%clk 0:02:32.7]} 9. Bd3 {[%clk 0:02:27.6]} 9... Ne7 {[%clk
0:02:19.5]} 10. O-O {[%clk 0:02:26.3]} 10... O-O {[%clk 0:02:19]} 11. Na3 {[%clk
0:02:16.7]} 11... Bd7 {[%clk 0:02:05.8]} 12. Nc2 {[%clk 0:02:16.8]} 12... h6
{[%clk 0:01:50.3]} 13. f4 {[%clk 0:02:10.1]} 13... f5 {[%clk 0:01:48.6]} 14. Qf3
{[%clk 0:02:05.2]} 14... fxe4 {[%clk 0:01:45.3]} 15. Bxe4 {[%clk 0:02:05.4]}
15... Bf5 {[%clk 0:01:42.7]} 16. Rae1 {[%clk 0:02:04.9]} 16... Qd7 {[%clk
0:01:30.6]} 17. Bxf5 {[%clk 0:02:04.1]} 17... Nxf5 {[%clk 0:01:30.3]} 18. Re6
{[%clk 0:01:59.9]} 18... Kh7 {[%clk 0:01:25.3]} 19. Rfe1 {[%clk 0:01:50.4]}
19... h5 {[%clk 0:01:18.5]} 20. b3 {[%clk 0:01:30.6]} 20... Rae8 {[%clk
0:01:15.4]} 21. Qe4 {[%clk 0:01:19]} 21... Rb8 {[%clk 0:00:51.8]} 22. Qd3 {[%clk
0:01:15.5]} 22... b5 {[%clk 0:00:47]} 23. Na3 {[%clk 0:01:06.2]} 23... bxc4
{[%clk 0:00:45.2]} 24. Nxc4 {[%clk 0:01:06.3]} 24... Rbd8 {[%clk 0:00:37.8]} 25.
g3 {[%clk 0:01:00]} 25... Qb7 {[%clk 0:00:36.5]} 26. Qe4 {[%clk 0:00:50.3]}
26... Rf7 {[%clk 0:00:34.5]} 27. Kg2 {[%clk 0:00:44.3]} 27... Bf8 {[%clk
0:00:27.6]} 28. h3 {[%clk 0:00:43.5]} 28... Ne7 {[%clk 0:00:22.5]} 29. g4 {[%clk
0:00:39.2]} 29... hxg4 {[%clk 0:00:16.7]} 30. hxg4 {[%clk 0:00:38.9]} 30... Rd7
{[%clk 0:00:11.9]} 31. Nxd6 {[%clk 0:00:25.9]} 31... Nxd5 {[%clk 0:00:08.2]} 32.
Nxb7 {[%clk 0:00:23.1]} 1-0

[Event "Betsys MČR v online bleskovém šachu 2021"]
[Site "Chess.com"]
[Date "2021.04.17"]
[Round "6"]
[White "FMD-MP"]
[Black "DominikS3"]
[Result "1-0"]
[WhiteElo "1754"]
[BlackElo "1329"]
[TimeControl "180+1"]
[EndTime "9:57:13 PDT"]
[Termination "Uživatel FMD-MP zvítězil na čas"]

1. c4 {[%clk 0:03:00.9]} 1... e5 {[%clk 0:02:59.1]} 2. Nc3 {[%clk 0:03:00.4]}
2... Nf6 {[%clk 0:02:55.8]} 3. g3 {[%clk 0:03:00.4]} 3... c6 {[%clk 0:02:55.8]}
4. Bg2 {[%clk 0:03:00.7]} 4... d5 {[%clk 0:02:55.9]} 5. cxd5 {[%clk 0:02:59.7]}
5... cxd5 {[%clk 0:02:56.8]} 6. d4 {[%clk 0:02:48.8]} 6... e4 {[%clk 0:02:53.9]}
7. e3 {[%clk 0:02:39.9]} 7... Nc6 {[%clk 0:02:52.8]} 8. Nge2 {[%clk 0:02:39.6]}
8... a6 {[%clk 0:02:50.8]} 9. Bd2 {[%clk 0:02:33.8]} 9... Bg4 {[%clk 0:02:49.4]}
10. h3 {[%clk 0:02:30.8]} 10... Bh5 {[%clk 0:02:44.8]} 11. g4 {[%clk 0:02:22.6]}
11... Bg6 {[%clk 0:02:43.1]} 12. Qb3 {[%clk 0:02:20.9]} 12... b5 {[%clk
0:02:33.5]} 13. Nf4 {[%clk 0:02:20.6]} 13... Ne7 {[%clk 0:02:22.5]} 14. a4
{[%clk 0:02:11.4]} 14... bxa4 {[%clk 0:02:21.1]} 15. Qxa4+ {[%clk 0:02:08.8]}
15... Qd7 {[%clk 0:02:13.4]} 16. Qb3 {[%clk 0:01:58.4]} 16... a5 {[%clk
0:01:22.9]} 17. Na4 {[%clk 0:01:55.2]} 17... Qc6 {[%clk 0:01:18.9]} 18. Rc1
{[%clk 0:01:39.1]} 18... Qd7 {[%clk 0:01:14]} 19. Nb6 {[%clk 0:01:25.3]} 19...
Qb7 {[%clk 0:01:08.9]} 20. Qa4+ {[%clk 0:01:11.1]} 20... Nd7 {[%clk 0:01:04.3]}
21. Nxa8 {[%clk 0:01:07.7]} 21... Qxa8 {[%clk 0:01:00.6]} 22. Qxa5 {[%clk
0:01:06]} 22... Qxa5 {[%clk 0:00:58.5]} 23. Bxa5 {[%clk 0:01:05.8]} 23... Nb8
{[%clk 0:00:36.1]} 24. Bb4 {[%clk 0:01:00]} 24... Nbc6 {[%clk 0:00:33.8]} 25.
Bd6 {[%clk 0:00:47.8]} 25... Kd7 {[%clk 0:00:22.4]} 26. Ba3 {[%clk 0:00:40.3]}
26... Nc8 {[%clk 0:00:05.4]} 27. Nxd5 {[%clk 0:00:38.6]} 27... N6e7 {[%clk
0:00:05.2]} 28. Nxe7 {[%clk 0:00:37.8]} 28... Bxe7 {[%clk 0:00:04.7]} 29. Bxe7
{[%clk 0:00:36.6]} 29... Nxe7 {[%clk 0:00:05.6]} 30. O-O {[%clk 0:00:35.7]}
30... Ke6 {[%clk 0:00:04.9]} 31. Rc5 {[%clk 0:00:32.5]} 31... Nd5 {[%clk
0:00:02.8]} 32. Rfc1 {[%clk 0:00:31.2]} 1-0